bitfinex-derivatives/quotes_BNBF0:USTF0_20250302
["timestamp","ask_amount","ask_price","bid_price","bid_amount"]
[1740933227299,0.2692158,625.2,621.02,4.435]
[1740933227494,0.2692158,625.19,621.02,4.435]
[1740933227697,0.2692158,625.18,621.02,4.435]
[1740933227902,6.94852346,625.73,621.02,4.435]
[1740933228094,1.67925302,625.17,621.02,4.435]
[1740933228293,0.26921283,625.16,621.02,4.435]
[1740933228500,0.26921283,625.15,621.02,4.435]
[1740933228704,0.26921283,625.14,621.02,4.435]
[1740933228908,0.26921283,625.13,621.02,4.435]
[1740933229097,0.26921283,625.12,621.02,4.435]
[1740933229572,6.94852346,625.73,621.02,4.435]
[1740933229573,0.2690342,625.11,621.02,4.435]
[1740933229998,0.2690342,625.1,621.02,4.435]
[1740933230201,0.2690342,625.09,621.02,4.435]
[1740933230400,0.2690342,625.08,621.02,4.435]
[1740933230608,0.2690342,625.07,621.02,4.435]
[1740933230800,0.2690342,625.06,621.02,4.435]
[1740933230995,0.2690342,625.05,621.02,4.435]
[1740933231203,0.2690342,625.04,621.02,4.435]
[1740933231397,0.2690342,625.03,621.02,4.435]
[1740933231597,0.2690342,625.02,621.02,4.435]
[1740933231800,0.2690342,625.01,621.02,4.435]
[1740933232000,0.2690342,625.0,621.02,4.435]
[1740933232194,0.2690342,624.99,621.02,4.435]
[1740933232526,0.2690342,624.98,621.02,4.435]
[1740933232701,0.32010755,624.79,621.02,4.435]
[1740933233004,0.2690342,624.78,621.02,4.435]
[1740933233204,7.21755766,624.77,621.02,4.435]
[1740933233400,0.2690342,624.76,621.02,4.435]
[1740933233597,0.2690342,624.75,621.02,4.435]
[1740933233795,0.2690342,624.74,621.02,4.435]
[1740933233994,0.2690342,624.73,621.02,4.435]
[1740933234195,0.2690342,624.72,621.02,4.435]
[1740933234403,0.2690342,624.71,621.02,4.435]
[1740933234602,0.2690342,624.7,621.02,4.435]
[1740933234802,0.2689537,624.69,621.02,4.435]
[1740933235005,0.2689537,624.68,621.02,4.435]
[1740933235206,0.2689537,624.67,621.02,4.435]
[1740933235397,0.2689537,624.66,621.02,4.435]
[1740933235607,6.94852346,624.77,621.02,4.435]
[1740933235608,0.2689537,624.65,621.02,4.435]
[1740933235795,0.2689537,624.64,621.02,4.435]
[1740933236050,6.94852346,624.77,621.02,4.435]
[1740933236306,0.32010755,624.79,621.02,4.435]
[1740933236307,0.26880575,624.76,621.02,4.435]
[1740933236498,0.26880575,624.75,621.02,4.435]
[1740933236708,0.26880575,624.74,621.02,4.435]
[1740933236907,0.26880575,624.73,621.02,4.435]
[1740933237100,0.26880575,624.72,621.02,4.435]
[1740933237332,0.26880575,624.71,621.02,4.435]
[1740933237512,0.26880575,624.7,621.02,4.435]
[1740933237803,0.26880575,624.69,621.02,4.435]
[1740933238003,0.26880575,624.68,621.02,4.435]
[1740933238205,0.26880575,624.67,621.02,4.435]
[1740933238407,0.26880575,624.66,621.02,4.435]
[1740933238607,0.26880575,624.65,621.02,4.435]
[1740933238912,0.26880575,624.64,621.02,4.435]
[1740933239104,0.26880575,624.63,621.02,4.435]
[1740933239314,0.26880575,624.62,621.02,4.435]
[1740933239516,0.26880575,624.61,621.02,4.435]
[1740933239706,0.26880575,624.6,621.02,4.435]
[1740933239904,0.26880575,624.59,621.02,4.435]
[1740933240138,0.26880575,624.58,621.03,0.29559921]
[1740933240301,0.26880575,624.57,621.04,0.32204044]
[1740933240520,0.26880575,624.56,621.04,0.32204044]
[1740933240715,0.26880575,624.55,621.04,0.32204044]
[1740933240972,0.26880575,624.54,621.04,0.32204044]
[1740933241105,0.26880575,624.53,621.04,0.32204044]
[1740933241329,0.26880575,624.52,621.05,0.29561257]
[1740933241610,0.26880575,624.51,621.05,0.29561257]
[1740933241811,0.26880575,624.5,621.04,0.32204044]
[1740933242014,0.26880575,624.49,621.05,0.29567142]
[1740933242311,0.32010755,624.79,621.05,0.29567142]
[1740933242312,0.26880575,624.48,621.05,0.29567142]
[1740933242514,0.26880575,624.47,621.04,0.32204044]
[1740933242823,0.26880575,624.46,621.04,0.32204044]
[1740933243018,0.26880575,624.45,621.04,0.32204044]
[1740933243222,0.26880575,624.44,621.04,0.32204044]
[1740933243417,0.26880575,624.43,621.04,0.32204044]
[1740933243619,0.32010755,624.79,621.04,0.32204044]
[1740933243620,0.26880575,624.42,621.04,1.87504044]
[1740933243816,0.26880575,624.41,621.04,4.63704044]
[1740933244023,0.26880575,624.4,621.04,4.63704044]
[1740933244220,0.26880575,624.39,621.04,4.63704044]
[1740933244416,0.32010755,624.79,621.04,4.63704044]
[1740933244417,0.26880575,624.38,621.04,4.63704044]
[1740933244622,0.26885205,624.37,621.04,4.63704044]
[1740933244927,0.26885205,624.36,621.04,4.63704044]
[1740933245121,0.26885205,624.35,621.04,4.63704044]
[1740933245323,0.26885205,624.34,621.04,4.63704044]
[1740933245547,0.26885205,624.33,621.04,4.63704044]
[1740933245735,0.26885205,624.32,621.04,4.63704044]
[1740933245922,0.26885205,624.31,621.04,4.63704044]
[1740933246425,0.26885205,624.3,621.04,4.63704044]
[1740933246732,0.26885205,624.29,621.04,4.63704044]
[1740933246924,0.26885205,624.28,621.04,4.63704044]
[1740933247132,0.26885205,624.27,621.04,4.63704044]
[1740933247322,0.26885205,624.26,621.04,4.63704044]
[1740933247524,0.26885205,624.25,621.04,4.63704044]
[1740933247724,0.26885205,624.24,621.04,4.63704044]
[1740933248028,0.26885205,624.23,621.04,4.63704044]
[1740933248226,0.26885205,624.22,621.04,4.63704044]
[1740933248425,0.26885205,624.21,621.04,4.63704044]
[1740933248825,0.26885205,624.2,621.04,4.63704044]
[1740933249127,0.26885205,624.19,621.04,4.63704044]
[1740933249322,0.26885205,624.18,621.04,4.63704044]
[1740933249540,0.32010755,624.79,621.04,4.63704044]
[1740933249725,0.26867388,624.78,621.05,0.29563475]
[1740933249933,0.26867388,624.77,621.05,0.29563475]
[1740933250139,0.26867388,624.76,621.05,0.29563475]
[1740933250430,0.26867388,624.75,621.05,0.29563475]
[1740933250627,0.26867388,624.74,621.05,0.29563475]
[1740933250828,0.32010755,624.79,621.05,0.29563475]
[1740933250829,0.26867388,624.73,621.12,1.14049352]
[1740933251029,0.26867388,624.72,621.12,1.14049352]
[1740933251239,0.26867388,624.71,621.12,1.14049352]
[1740933251422,0.26867388,624.7,621.13,0.29559117]
[1740933251627,0.26867388,624.69,621.13,0.29559117]
[1740933251829,0.26867388,624.68,621.13,0.29559117]
[1740933252032,0.26867388,624.67,621.13,0.29559117]
[1740933252246,0.26867388,624.66,621.12,1.14049352]
[1740933252532,0.26867388,624.65,621.12,1.14049352]
[1740933252729,0.26867388,624.64,621.29,1.14049352]
[1740933252933,0.32010755,624.79,621.29,1.14049352]
[1740933252934,0.26867388,624.63,621.29,1.14049352]
[1740933253132,0.26867388,624.62,621.29,1.14049352]
[1740933253332,0.26867388,624.61,621.29,1.14049352]
[1740933253549,0.26867388,624.6,621.29,1.14049352]
[1740933253729,0.26867388,624.59,621.29,1.14049352]
[1740933253933,0.26867388,624.58,621.29,1.14049352]
[1740933254128,0.26867388,624.57,621.29,1.14049352]
[1740933254333,0.26867388,624.56,621.29,1.14049352]
[1740933254633,0.26867388,624.55,621.29,1.14049352]
[1740933254827,0.26867388,624.54,621.29,1.14049352]
[1740933255033,0.26867388,624.53,621.29,1.14049352]
[1740933255349,0.26867388,624.52,621.29,1.076]
[1740933255533,0.26867388,624.51,621.29,1.076]
[1740933255735,0.26867388,624.5,621.29,1.076]
[1740933255966,0.26867388,624.49,621.29,1.076]
[1740933256138,0.26867388,624.48,621.29,1.076]
[1740933256345,0.26867388,624.47,621.29,1.076]
[1740933256639,0.26867388,624.46,621.29,1.076]
[1740933256832,0.26867388,624.45,621.29,1.076]
[1740933257039,0.26867388,624.44,621.29,1.076]
[1740933257333,0.26867388,624.43,621.29,1.076]
[1740933257542,0.26867388,624.42,621.29,1.076]
[1740933257737,0.26867388,624.41,621.3,0.32190568]
[1740933257944,0.26867388,624.4,621.38,1.14049352]
[1740933258140,0.26867388,624.39,621.38,1.14049352]
[1740933258374,0.26867388,624.38,621.38,1.14049352]
[1740933258640,0.26867388,624.37,621.38,1.14049352]
[1740933258837,0.26867388,624.36,621.38,1.14049352]
[1740933259039,0.26867388,624.35,621.64,1.14049352]
[1740933259239,0.26867388,624.34,621.64,1.14049352]
[1740933259468,0.32010755,624.79,621.64,1.14049352]
[1740933259651,0.26856544,624.78,621.64,1.14049352]
[1740933259838,0.26856544,624.77,621.64,1.14049352]
[1740933260047,0.26856544,624.76,621.65,1.468]
[1740933260344,0.26856544,624.75,621.77,1.14049352]
[1740933260641,0.26856544,624.74,621.77,1.14049352]
[1740933261080,0.26856544,624.73,621.77,1.14049352]
[1740933261367,0.32010755,624.79,621.77,1.14049352]
[1740933261564,0.26844972,624.78,621.77,1.14049352]
[1740933261741,0.26844972,624.77,621.77,1.14049352]
[1740933261941,0.26844972,624.76,621.77,1.14049352]
[1740933262145,0.26844972,624.75,622.08,1.14049352]
[1740933262352,0.26844972,624.74,622.08,1.14049352]
[1740933262541,0.26844972,624.73,622.08,1.14049352]
[1740933262741,0.26844972,624.72,622.08,1.14049352]
[1740933262944,0.26842377,624.71,622.08,1.14049352]
[1740933263139,0.32021005,624.59,622.08,1.14049352]
[1740933263455,0.26842377,624.58,622.19,1.14049352]
[1740933263639,0.26842377,624.57,622.19,1.14049352]
[1740933263840,0.32021005,624.59,622.19,1.14049352]
[1740933263841,0.26842377,624.56,622.19,1.14049352]
[1740933264065,0.26842377,624.55,622.19,1.14049352]
[1740933264235,0.26842377,624.54,622.19,1.14049352]
[1740933264435,0.26842377,624.53,622.19,1.14049352]
[1740933264859,0.26842377,624.52,622.41,1.14049352]
[1740933265040,0.26842377,624.51,622.41,1.14049352]
[1740933265239,0.26842377,624.5,622.41,1.14049352]
[1740933265439,0.26842377,624.49,622.41,1.14049352]
[1740933265641,0.26842377,624.48,622.41,1.14049352]
[1740933265837,0.26842377,624.47,622.41,1.14049352]
[1740933266143,0.26842377,624.46,622.42,1.14049352]
[1740933266538,0.26842377,624.45,622.42,1.14049352]
[1740933266740,0.26842377,624.44,622.42,1.14049352]
[1740933266961,0.26842377,624.43,622.42,1.14049352]
[1740933267446,0.26842377,624.42,622.23,1.14049352]
[1740933267646,0.26842377,624.41,622.23,1.14049352]
[1740933267839,0.26842377,624.4,622.23,1.14049352]
[1740933268152,0.26842377,624.39,622.23,1.14049352]
[1740933268341,0.26842377,624.38,622.23,1.14049352]
[1740933268555,0.26842377,624.37,622.19,1.14049352]
[1740933268743,0.26842377,624.36,622.19,1.14049352]
[1740933268941,0.26842377,624.35,622.19,1.14049352]
[1740933269243,0.26842377,624.34,622.19,1.14049352]
[1740933269442,0.26842377,624.33,622.19,1.14049352]
[1740933269642,0.32021005,624.59,622.18,1.14049352]
[1740933269844,0.26842257,624.58,622.2,1.529]
[1740933270043,0.26842257,624.57,622.2,1.529]
[1740933270243,0.26842257,624.56,622.2,1.529]
[1740933270452,0.26842257,624.55,622.2,1.529]
[1740933270644,0.26842257,624.54,622.2,1.529]
[1740933270947,0.26842257,624.53,622.2,1.529]
[1740933271144,0.26842257,624.52,622.2,1.529]
[1740933271345,0.32021005,624.59,622.2,1.529]
[1740933271565,0.26832546,624.58,622.2,1.529]
[1740933271745,0.32021005,624.59,622.2,1.529]
[1740933272824,0.26829731,624.58,622.2,1.529]
[1740933273070,0.26829731,624.57,622.29,1.14049352]
[1740933273345,0.26829731,624.56,622.29,1.14049352]
[1740933273655,0.26829731,624.55,622.29,1.14049352]
[1740933273950,0.26829731,624.54,622.29,1.14049352]
[1740933274158,0.26829731,624.53,622.29,1.14049352]
[1740933274451,0.26829731,624.52,622.29,1.14049352]
[1740933274871,0.26829731,624.51,622.29,1.14049352]
[1740933275049,0.26829731,624.51,622.2,1.529]
[1740933275050,0.26829731,624.5,622.47,1.14049352]
[1740933275355,0.26829731,624.49,622.47,1.14049352]
[1740933275543,0.26829731,624.48,622.47,1.14049352]
[1740933275762,0.26838101,624.47,622.47,1.14049352]
[1740933276027,0.26838101,624.46,622.47,1.14049352]
[1740933276149,0.26838101,624.45,622.47,1.14049352]
[1740933276347,0.26838101,624.44,622.47,1.14049352]
[1740933276544,0.26838101,624.43,622.47,1.14049352]
[1740933276948,0.26838101,624.42,622.47,1.14049352]
[1740933277145,0.26838101,624.41,622.48,1.077]
[1740933277380,0.26838101,624.4,622.48,1.077]
[1740933277550,0.26838101,624.39,622.54,1.14049352]
[1740933277751,0.26838101,624.38,622.54,1.14049352]
[1740933277948,0.26838101,624.37,622.54,1.14049352]
[1740933278157,0.26838101,624.36,622.54,1.14049352]
[1740933278347,0.26838101,624.35,622.54,1.14049352]
[1740933278549,0.26838101,624.34,622.54,1.14049352]
[1740933278743,0.26838101,624.33,622.54,1.14049352]
[1740933278950,0.26838101,624.32,622.54,1.14049352]
[1740933279162,0.58873468,624.31,622.54,1.14049352]
[1740933279354,0.26838101,624.3,622.54,1.14049352]
[1740933279555,0.26838101,624.29,622.54,1.14049352]
[1740933279748,0.26838101,624.28,622.54,1.14049352]
[1740933279956,0.26838101,624.27,622.54,1.14049352]
[1740933280156,0.26838101,624.26,622.54,1.14049352]
[1740933280355,0.26838101,624.25,622.57,1.14049352]
[1740933280654,0.26838101,624.24,622.57,1.14049352]
[1740933280934,0.26838101,624.3,622.57,1.14049352]
[1740933281156,0.26838101,624.23,622.57,1.14049352]
[1740933281263,0.26838101,624.29,622.57,1.14049352]
[1740933281461,0.26838101,624.22,622.57,1.14049352]
[1740933281650,0.26838101,624.21,622.57,1.14049352]
[1740933281971,0.26838101,624.2,622.57,1.14049352]
[1740933282150,0.26838101,624.19,622.57,1.14049352]
[1740933282550,0.26838101,624.18,622.57,1.14049352]
[1740933282754,0.26838101,624.18,622.87,1.14049352]
[1740933283040,0.32035367,624.31,622.87,1.14049352]
[1740933283173,0.26810666,624.3,622.87,1.14049352]
[1740933283354,0.32036906,624.28,622.87,1.14049352]
[1740933283659,0.26810666,624.27,622.87,1.14049352]
[1740933283871,0.26810666,624.26,622.87,1.14049352]
[1740933284054,0.26810666,624.25,622.87,1.14049352]
[1740933284265,0.26810666,624.24,622.87,1.14049352]
[1740933284469,0.32036906,624.28,622.88,0.29438174]
[1740933284854,0.32036906,624.28,622.89,0.29438174]
[1740933285055,0.32036906,624.28,622.9,0.29438174]
[1740933285359,0.32036906,624.28,622.91,0.29438174]
[1740933285558,0.32036906,624.28,622.86,0.29438174]
[1740933285757,0.32036906,624.28,622.87,0.29438174]
[1740933286064,0.32036906,624.28,622.88,0.29438174]
[1740933286253,0.32036906,624.28,622.89,0.29438174]
[1740933286453,0.32036906,624.28,622.9,0.29438174]
[1740933286651,0.32036906,624.28,622.91,0.29438174]
[1740933286858,0.32036906,624.28,622.92,0.29438174]
[1740933287060,0.32036906,624.28,622.93,0.29438174]
[1740933287256,0.32036906,624.28,622.92,1.221]
[1740933287556,0.32036906,624.28,622.94,0.29438174]
[1740933287758,0.32036906,624.28,622.93,0.29438174]
[1740933287959,6.94852346,630.38,623.73,1.14049352]
[1740933288166,0.26743091,630.37,623.73,1.14049352]
[1740933288366,0.26743091,630.36,623.67,1.14049352]
[1740933288562,0.26743091,630.35,623.67,1.14049352]
[1740933288864,0.26743091,630.34,623.68,0.29436648]
[1740933289159,0.26743091,630.33,623.68,0.29436648]
[1740933289596,6.94852346,630.38,623.67,1.14049352]
[1740933289783,0.26735608,630.32,623.69,0.2942975]
[1740933289954,6.94852346,630.38,623.67,1.14049352]
[1740933289955,0.26735608,630.31,623.7,0.2942975]
[1740933290167,0.26735608,630.3,623.68,0.2942975]
[1740933290367,0.26735608,630.29,623.69,0.2942975]
[1740933290587,0.26735608,630.28,623.68,0.2942975]
[1740933290885,0.26735608,630.27,623.69,0.2942975]
[1740933291165,0.2673308,630.26,623.7,0.29427175]
[1740933291360,1.66887798,630.27,623.57,1.14049352]
[1740933291361,0.2673308,630.25,623.58,0.29427175]
[1740933291553,0.2673308,630.24,623.59,0.29427175]
[1740933291770,0.2673308,630.23,623.58,0.29427175]
[1740933292065,0.2673308,630.22,623.59,0.29427175]
[1740933292267,0.2673308,630.21,623.58,0.29427175]
[1740933292561,0.2673308,630.2,623.58,0.29427175]
[1740933292764,0.2673308,630.19,623.57,1.14049352]
[1740933292971,0.2673308,630.18,623.57,1.14049352]
[1740933293168,0.2673308,630.17,623.57,1.14049352]
[1740933293357,0.2673308,630.16,623.57,1.14049352]
[1740933293654,0.2673308,630.15,623.25,1.14049352]
[1740933293861,0.2673308,630.14,623.26,0.29434591]
[1740933294062,0.2673308,630.13,623.25,1.14049352]
[1740933294263,0.2673308,630.12,623.26,0.29446636]
[1740933294459,0.26753308,630.11,623.27,0.2944767]
[1740933294760,0.26753308,630.1,623.28,0.2944767]
[1740933294962,0.26753308,630.09,623.29,0.2944767]
[1740933295156,0.26753308,630.08,623.28,1.621]
[1740933295361,0.26753308,630.07,623.28,1.621]
[1740933295560,0.26753308,630.06,623.28,1.621]
[1740933295767,0.26753308,630.05,623.29,0.29452882]
[1740933296062,0.26753308,630.04,623.28,1.621]
[1740933296565,0.26753308,630.03,623.28,1.621]
[1740933296868,0.26753308,630.02,623.28,1.621]
[1740933297158,0.26753308,630.01,623.28,1.621]
[1740933297364,0.26753308,630.0,623.28,3.161]
[1740933297564,0.26753308,629.99,623.28,3.161]
[1740933297780,1.67013278,630.02,623.28,3.161]
[1740933297967,0.26773241,630.01,623.28,3.161]
[1740933298169,0.26773241,630.0,623.28,3.161]
[1740933298370,0.26773241,629.99,623.28,3.161]
[1740933298566,0.26773241,629.98,623.28,3.161]
[1740933298872,0.26773241,629.97,623.28,3.161]
[1740933299275,0.26773241,629.96,623.28,3.161]
[1740933299468,1.67013278,630.02,623.28,4.094]
[1740933299663,0.26777895,630.01,623.28,4.094]
[1740933299872,0.26777895,630.0,623.28,4.094]
[1740933300068,0.26777895,629.99,623.28,4.094]
[1740933300363,0.26777895,629.98,623.28,4.094]
[1740933300686,0.26777895,629.97,623.28,4.094]
[1740933300860,1.67069404,630.0,623.28,4.094]
[1740933301160,0.26791293,629.96,623.28,4.094]
[1740933301265,0.26791293,629.99,623.28,4.094]
[1740933301468,0.26791293,629.98,623.28,4.094]
[1740933301670,0.26791293,629.97,623.28,4.094]
[1740933301868,0.26791293,629.96,623.28,4.094]
[1740933302073,0.26791293,629.95,623.28,4.094]
[1740933302465,0.26791293,629.94,623.28,4.094]
[1740933302872,0.26791293,629.93,623.28,4.094]
[1740933303069,0.26791293,629.92,623.28,4.094]
[1740933303265,0.26791293,629.91,623.28,4.094]
[1740933303466,0.26791293,629.9,623.28,4.094]
[1740933303673,0.26791293,629.89,623.28,4.094]
[1740933303867,0.26791293,629.88,623.28,4.094]
[1740933304067,0.26789518,629.87,623.28,4.094]
[1740933304378,0.26789518,629.86,623.28,4.094]
[1740933304672,0.26789518,629.85,623.28,4.094]
[1740933304867,0.26789518,629.84,623.28,4.094]
[1740933305069,0.26789518,629.83,623.28,4.094]
[1740933305272,0.26789518,629.82,623.28,4.094]
[1740933305468,0.26789518,629.81,623.28,4.094]
[1740933305677,0.26789518,629.8,623.28,4.094]
[1740933305978,0.26789518,629.79,623.28,4.094]
[1740933306181,0.26789518,629.78,623.28,4.094]
[1740933306365,0.26789518,629.77,623.28,4.094]
[1740933306568,0.26789518,629.76,623.28,4.094]
[1740933306874,0.26789518,629.75,623.28,4.094]
[1740933307078,0.26789518,629.74,623.28,4.094]
[1740933307278,0.26789518,629.73,623.28,4.094]
[1740933307480,0.26789518,629.72,623.28,4.094]
[1740933307876,0.26789518,629.71,623.28,4.094]
[1740933308178,0.26789518,629.7,623.28,4.094]
[1740933308371,0.26789518,629.69,623.28,4.094]
[1740933308579,0.26789518,629.68,623.28,4.094]
[1740933308787,0.26789518,629.67,623.28,4.094]
[1740933308978,0.26789518,629.66,623.28,4.094]
[1740933309175,0.26789518,629.65,623.28,4.094]
[1740933309371,0.26789518,629.64,623.28,4.094]
[1740933309578,0.26789518,629.63,623.28,4.094]
[1740933309886,0.26789518,629.62,623.28,4.094]
[1740933310077,0.26789518,629.61,623.28,4.094]
[1740933310378,0.26789518,629.6,623.28,4.094]
[1740933310582,0.26789518,629.59,623.28,5.098]
[1740933310779,0.26789518,629.58,623.28,5.098]
[1740933310980,0.26789518,629.57,623.28,5.098]
[1740933311278,0.26789518,629.56,623.28,5.098]
[1740933311479,0.26789518,629.55,623.28,5.098]
[1740933311680,0.26789518,629.54,623.28,5.098]
[1740933312217,0.26789518,629.53,623.28,5.098]
[1740933312222,0.26789518,629.52,623.29,0.29461141]
[1740933312483,0.26789518,629.51,623.28,3.477]
[1740933312687,0.26751004,629.5,623.28,3.477]
[1740933312880,0.26751004,629.49,623.29,0.29445831]
[1740933313083,0.26751004,629.48,623.28,3.477]
[1740933313288,0.26751004,629.47,623.28,3.477]
[1740933313487,0.26751004,629.46,623.28,3.477]
[1740933313789,0.26751004,629.45,623.28,3.477]
[1740933314012,0.26751004,629.44,623.29,0.2944595]
[1740933314187,0.26751004,629.44,623.28,3.477]
[1740933314387,0.26748053,629.43,623.29,0.29442443]
[1740933314582,0.26748053,629.42,623.29,0.90723971]
[1740933314784,0.26748053,629.41,623.29,0.29442443]
[1740933314988,0.26748053,629.4,623.3,0.29442443]
[1740933315187,0.26748053,629.39,623.29,0.29442443]
[1740933315393,0.26748053,629.38,623.28,1.937]
[1740933315585,0.26748053,629.37,623.28,1.937]
[1740933315783,0.26748053,629.36,623.28,3.423]
[1740933315995,0.26749187,629.35,623.29,0.58894544]
[1740933316318,0.26749187,629.34,623.3,0.29443553]
[1740933316485,0.26749187,629.33,623.3,0.29443553]
[1740933316693,0.26749187,629.32,623.3,0.29443553]
[1740933316889,0.26749187,629.31,623.3,0.29443553]
[1740933317082,0.26749187,629.3,623.3,0.29443553]
[1740933317287,0.26749187,629.29,623.3,0.29443553]
[1740933317594,0.26749187,629.28,623.3,0.29443553]
[1740933317893,1.66960527,629.41,623.3,0.29443553]
[1740933317894,0.26749187,629.27,623.31,0.29443553]
[1740933318189,0.26749187,629.26,623.31,0.29443553]
[1740933318488,0.26749187,629.25,623.31,0.29443553]
[1740933318691,0.26749187,629.24,623.31,0.29443553]
[1740933318894,0.26749187,629.24,623.55,1.14049352]
[1740933319086,0.26749187,629.23,623.55,1.14049352]
[1740933319305,1.66918483,629.26,623.55,1.14049352]
[1740933319488,0.26738176,629.25,623.56,0.29432364]
[1740933319695,0.26738176,629.24,623.56,0.29432364]
[1740933319889,0.26738176,629.23,623.56,0.29432364]
[1740933320086,0.26738176,629.22,623.56,0.29432364]
[1740933320286,0.26738176,629.21,623.56,0.29432364]
[1740933320504,0.26738176,629.2,623.73,1.14049352]
[1740933320887,0.26738176,629.19,623.73,1.14049352]
[1740933321104,0.26738176,629.18,623.73,1.14049352]
[1740933321307,0.26738176,629.17,623.73,1.14049352]
[1740933321492,0.26738176,629.16,623.73,1.14049352]
[1740933321710,0.26738176,629.15,623.74,0.29429439]
[1740933321990,0.26738176,629.14,623.74,0.29429439]
[1740933322294,0.26738176,629.13,623.74,0.29429439]
[1740933322496,0.26738176,629.12,623.74,0.29429439]
[1740933322696,0.26728338,629.11,623.86,1.14049352]
[1740933322896,1.66918483,629.26,623.86,1.14049352]
[1740933323296,0.2673252,629.25,623.86,1.14049352]
[1740933323495,0.2673252,629.24,623.86,1.14049352]
[1740933323695,0.2673252,629.23,623.86,1.14049352]
[1740933323910,0.2673252,629.23,623.87,0.29424336]
[1740933324093,6.94852346,630.54,623.87,0.29424336]
[1740933324094,0.2673252,629.22,623.87,0.29424336]
[1740933324308,0.2673252,629.21,623.87,0.29424336]
[1740933324499,1.66919151,629.22,623.98,0.32052309]
[1740933324796,0.31798524,628.96,623.99,0.29417376]
[1740933325203,0.26723345,628.95,623.99,0.29417376]
[1740933325399,0.26723345,628.94,623.98,0.32052309]
[1740933325616,0.26723345,628.93,623.98,0.32052309]
[1740933325800,0.26723345,628.92,623.98,0.32052309]
[1740933326202,0.31798524,628.96,623.98,0.32052309]
[1740933326398,0.26729711,628.95,623.99,0.29422832]
[1740933326594,0.26729711,628.94,623.98,0.32052309]
[1740933326999,0.26729711,628.93,623.99,0.2942031]
[1740933327200,0.26729711,628.92,623.99,0.2942031]
[1740933327400,0.26729711,628.91,623.99,0.2942031]
[1740933327610,0.26729711,628.9,623.99,0.2942031]
[1740933328004,0.26729711,628.89,623.99,0.2942031]
[1740933328196,0.26729711,628.88,623.99,0.2942031]
[1740933328401,1.66928492,628.93,624.06,1.14049352]
[1740933328402,0.26729711,628.87,624.06,1.14049352]
[1740933328598,0.26729711,628.86,624.07,0.2942031]
[1740933328903,0.26729711,628.85,624.07,0.2942031]
[1740933329203,0.26729711,628.84,624.07,0.2942031]
[1740933329403,0.26729711,628.83,624.07,0.2942031]
[1740933329853,0.26715203,628.82,624.08,0.29409051]
[1740933330112,0.26715203,628.81,624.09,0.29409051]
[1740933330403,0.26715203,628.8,624.07,0.29409051]
[1740933330603,0.26715203,628.79,624.08,0.29409051]
[1740933330805,0.26715203,628.78,624.08,1.379]
[1740933331113,0.26714409,628.77,624.09,0.29408177]
[1740933331425,0.26714409,628.76,624.09,0.29408177]
[1740933331804,1.66928492,628.93,624.09,0.29408177]
[1740933331805,0.26714409,628.75,624.09,0.29408177]
[1740933332008,0.26714409,628.74,624.09,0.29408177]
[1740933332208,0.26714409,628.73,624.09,0.29408177]
[1740933332503,0.26714409,628.72,624.08,1.379]
[1740933332707,0.26714409,628.71,624.08,1.379]
[1740933333008,0.31798524,628.96,624.08,1.379]
[1740933333601,0.26721363,628.7,624.08,1.379]
[1740933333805,0.26721363,628.69,624.08,1.379]
[1740933334001,0.26721363,628.68,624.09,0.29409756]
[1740933334207,0.26721363,628.67,624.09,0.29409756]
[1740933334406,0.26721363,628.66,624.09,0.29409756]
[1740933334910,0.26721363,628.65,624.09,0.29409756]
[1740933335109,0.26721363,628.64,624.09,0.29409756]
[1740933335308,0.31798524,628.96,624.08,1.379]
[1740933335503,0.26714051,628.95,624.09,0.29407857]
[1740933335708,0.26714051,628.94,624.09,0.29407857]
[1740933335907,0.31798524,628.96,624.09,0.29407857]
[1740933335908,0.26714051,628.93,624.09,0.29407857]
[1740933336111,0.26714051,628.92,624.08,1.379]
[1740933336409,0.31798524,628.96,624.08,1.379]
[1740933336607,0.26712609,628.95,624.08,1.379]
[1740933336827,0.26712609,628.94,624.08,1.379]
[1740933337005,0.26712609,628.93,624.09,1.34209669]
[1740933337311,0.26712609,628.92,624.1,0.29409669]
[1740933337506,0.26712609,628.91,624.1,0.29409669]
[1740933337704,0.26712609,628.9,624.09,1.048]
[1740933337905,0.26712609,628.89,624.11,1.062]
[1740933338213,0.26712609,628.88,624.12,0.29408296]
[1740933338508,0.26712609,628.87,624.12,0.29408296]
[1740933338708,0.26712609,628.86,624.12,0.29408296]
[1740933339008,0.26713351,628.85,624.13,0.29407137]
[1740933339207,0.26713351,628.84,624.11,1.062]
[1740933339402,0.26713351,628.83,624.11,1.062]